fUST/lending_fUST_20240830
["ID","MTS","AMOUNT","RATE_DAILY","PERIOD"]
[336630448,1724982649094,-3000.0,0.000212,2]
[336630449,1724982649104,-150.112233,0.000212,2]
[336630450,1724982649114,-150.112233,0.000212,4]
[336630451,1724982649124,-3000.0,0.0002121,2]
[336630452,1724982649133,-3000.0,0.0002122,2]
[336630453,1724982649142,-3000.0,0.0002123,2]
[336630454,1724982649151,-3000.0,0.0002124,2]
[336630455,1724982649161,-3000.0,0.0002125,2]
[336630456,1724982649171,-3000.0,0.0002126,2]
[336630457,1724982649181,-3000.0,0.0002127,2]
[336630458,1724982649190,-3000.0,0.0002128,2]
[336630459,1724982649199,-3000.0,0.0002129,2]
[336630460,1724982649208,-1900.52,0.000213,2]
[336630461,1724982649217,-3000.0,0.000213,2]
[336630462,1724982649226,-3000.0,0.0002131,2]
[336630463,1724982649235,-3000.0,0.0002132,2]
[336630464,1724982649245,-3000.0,0.0002133,2]
[336630465,1724982649255,-3000.0,0.0002134,2]
[336630466,1724982649265,-3000.0,0.0002135,2]
[336630467,1724982649275,-3000.0,0.0002136,2]
[336630468,1724982649286,-701.66,0.00021369,2]
[336630469,1724982649295,-500.0,0.00021369,2]
[336630470,1724982649304,-410.18825646,0.00021369,2]
[336630484,1724982820134,159.436109,0.00014247,2]
[336630508,1724983542492,159.436109,0.00014247,2]
[336630552,1724983832776,-300.0,0.00017652,2]
[336630554,1724983832786,-118.89313081,0.00017653,2]
[336630588,1724983838953,-24771.10686919,0.00017653,2]
[336630589,1724983838963,-218.33283,0.00018108,2]
[336630590,1724983838973,-218.33283,0.00018158,2]
[336630591,1724983838982,-218.33283,0.00018207,2]
[336630592,1724983838992,-218.33283,0.00018257,2]
[336630593,1724983839001,-218.33283,0.00018307,2]
[336630594,1724983839011,-218.33283,0.00018356,2]
[336630595,1724983839020,-218.33283,0.00018406,2]
[336630596,1724983839030,-218.33283,0.00018456,2]
[336630597,1724983839040,-218.33283,0.00018505,2]
[336630598,1724983839050,-218.33283,0.00018555,2]
[336630599,1724983839061,-218.33283,0.00018605,2]
[336630600,1724983839070,-380.494488,0.0001863,2]
[336630601,1724983839080,-218.33283,0.00018654,2]
[336630602,1724983839089,-218.33283,0.00018704,2]
[336630603,1724983839100,-218.33283,0.00018754,2]
[336630604,1724983839109,-218.33283,0.00018803,2]
[336630605,1724983839119,-218.33283,0.00018853,2]
[336630606,1724983839131,-606.70465573,0.00018859,2]
[336630608,1724983839140,-218.33283,0.00018903,2]
[336630609,1724983839149,-218.33283,0.00018952,2]
[336630610,1724983839160,-218.33283,0.00019002,2]
[336630611,1724983839170,-218.33283,0.00019052,2]
[336630612,1724983839180,-331.94592508,0.00019173,2]
[336630613,1724983839189,-638.27328744,0.00019177,2]
[336630614,1724983839200,-500.0,0.00019178,2]
[336630615,1724983839209,-308.93004532,0.00019178,2]
[336630616,1724983839219,-500.0,0.00019178,2]
[336630617,1724983839228,-500.0,0.00019178,2]
[336630618,1724983839238,-500.0,0.00019178,2]
[336630619,1724983839247,-500.0,0.00019178,2]
[336630620,1724983839256,-500.0,0.00019178,2]
[336630621,1724983839266,-500.0,0.00019178,2]
[336630622,1724983839275,-500.0,0.00019178,2]
[336630623,1724983839285,-500.0,0.00019178,2]
[336630624,1724983839294,-500.0,0.00019178,2]
[336630625,1724983839463,-500.0,0.00019178,2]
[336630626,1724983839474,-500.0,0.00019178,2]
[336630627,1724983839484,-500.0,0.00019178,2]
[336630628,1724983839493,-503.8726888,0.00019178,2]
[336630629,1724983839502,-500.0,0.00019178,2]
[336630630,1724983839512,-500.0,0.00019178,2]
[336630631,1724983839521,-500.0,0.00019178,2]
[336630632,1724983839531,-500.0,0.00019178,2]
[336630633,1724983839541,-500.0,0.00019178,2]
[336630634,1724983839551,-500.0,0.00019178,2]
[336630635,1724983839561,-829.52,0.00019178,2]
[336630636,1724983839571,-500.0,0.00019178,2]
[336630637,1724983839580,-500.0,0.00019178,2]
[336630638,1724983839589,-500.0,0.00019178,2]
[336630639,1724983839599,-500.0,0.00019178,2]
[336630640,1724983839608,-500.0,0.00019178,2]
[336630641,1724983839617,-500.0,0.00019178,2]
[336630642,1724983839626,-426.19663222,0.00019178,2]
[336630643,1724983839636,-718.95,0.00019178,2]
[336630644,1724983839645,-200.0,0.00019178,2]
[336630645,1724983839654,-500.0,0.00019178,2]
[336630646,1724983839664,-510.28349452,0.00019178,2]
[336630647,1724983839674,-173.82096493,0.00019178,2]
[336630648,1724983839683,-500.0,0.00019178,2]
[336630649,1724983839693,-500.0,0.00019178,2]
[336630650,1724983839703,-500.0,0.00019178,2]
[336630651,1724983839713,-500.0,0.00019178,2]
[336630652,1724983839723,-264.7435638,0.00019178,2]
[336630653,1724983839732,-500.0,0.00019178,2]
[336630654,1724983839742,-500.0,0.00019178,2]
[336630655,1724983839751,-477.79115899,0.00019178,2]
[336630656,1724983839761,-500.0,0.00019178,2]
[336630657,1724983839771,-500.0,0.00019178,2]
[336630658,1724983839780,-500.0,0.00019178,2]
[336630659,1724983839794,-262.33351205,0.00019178,2]
[336630660,1724983839803,-500.0,0.00019178,2]
[336630661,1724983839813,-624.21,0.00019178,2]
[336630662,1724983839822,-500.0,0.00019178,2]
[336630663,1724983839833,-214.29445303,0.00019178,2]
[336630664,1724983839842,-811.43,0.00019178,2]
[336630665,1724983839852,-500.0,0.00019178,2]
[336630666,1724983839862,-500.0,0.00019178,2]
[336630667,1724983839871,-650.46,0.00019178,2]
[336630668,1724983839882,-674.29,0.00019178,2]
[336630669,1724983839892,-500.0,0.00019178,2]
[336630670,1724983839903,-500.0,0.00019178,2]
[336630671,1724983839913,-500.0,0.00019178,2]
[336630672,1724983839923,-500.0,0.00019178,2]
[336630673,1724983839933,-505.41931028,0.00019178,2]
[336630674,1724983839943,-2372.91,0.00019178,2]
[336630675,1724983839953,-500.0,0.00019178,2]
[336630676,1724983839963,-500.0,0.00019178,2]
[336630677,1724983839973,-7565.24,0.00019178,2]
[336630678,1724983839983,-500.0,0.00019178,2]
[336630679,1724983839993,-544.68,0.00019178,2]
[336630680,1724983840005,-2711.47,0.00019178,2]
[336630681,1724983840016,-500.0,0.00019178,2]
[336630682,1724983840026,-500.0,0.00019178,2]
[336630683,1724983840037,-500.0,0.00019178,2]
[336630684,1724983840047,-1810.15,0.00019178,2]
[336630685,1724983840057,-500.0,0.00019178,2]
[336630686,1724983840068,-500.0,0.00019178,2]
[336630687,1724983840077,-504.40382128,0.00019178,2]
[336630688,1724983840087,-500.0,0.00019178,2]
[336630689,1724983840097,-596.7,0.00019178,2]
[336630690,1724983840108,-500.0,0.00019178,2]
[336630691,1724983840119,-500.0,0.00019178,2]
[336630692,1724983840133,-500.0,0.00019178,2]
[336630693,1724983840143,-500.0,0.00019178,2]
[336630694,1724983840153,-500.0,0.00019178,2]
[336630695,1724983840163,-500.0,0.00019178,2]
[336630696,1724983840174,-732.32,0.00019178,2]
[336630697,1724983840183,-1028.9,0.00019178,2]
[336630698,1724983840193,-528.46,0.00019178,2]
[336630699,1724983840203,-500.0,0.00019178,2]
[336630700,1724983840214,-500.0,0.00019178,2]
[336630701,1724983840224,-263.47649222,0.00019178,2]
[336630702,1724983840234,-500.0,0.00019178,2]
[336630703,1724983840244,-500.0,0.00019178,2]
[336630704,1724983840253,-584.53,0.00019178,2]
[336630705,1724983840264,-500.0,0.00019178,2]
[336630706,1724983840274,-500.0,0.00019178,2]
[336630707,1724983840284,-500.0,0.00019178,2]
[336630708,1724983840294,-558.86,0.00019178,2]
[336630710,1724983840304,-500.0,0.00019178,2]
[336630711,1724983840314,-500.0,0.00019178,2]
[336630712,1724983840324,-1600.8,0.00019178,2]
[336630713,1724983840334,-500.0,0.00019178,2]
[336630714,1724983840344,-500.0,0.00019178,2]
[336630715,1724983840353,-514.67,0.00019178,2]
[336630716,1724983840362,-500.0,0.00019178,2]
[336630717,1724983840373,-722.8,0.00019178,2]
[336630718,1724983840383,-507.84790138,0.00019178,2]
[336630719,1724983840393,-500.0,0.00019178,2]
[336630720,1724983840403,-550.41818776,0.00019178,2]
[336630721,1724983840414,-505.22740184,0.00019178,2]
[336630722,1724983840424,-500.0,0.00019178,2]
[336630723,1724983840434,-749.96,0.00019178,2]
[336630724,1724983840444,-500.0,0.00019178,2]
[336630725,1724983840453,-500.0,0.00019178,2]
[336630726,1724983840463,-2936.91,0.00019178,2]
[336630727,1724983840473,-500.0,0.00019178,2]
[336630728,1724983840483,-538.9,0.00019178,2]
[336630729,1724983840493,-500.0,0.00019178,2]
[336630730,1724983840504,-4606.99,0.00019178,2]
[336630731,1724983840513,-500.0,0.00019178,2]
[336630732,1724983840523,-500.0,0.00019178,2]
[336630733,1724983840532,-500.0,0.00019178,2]
[336630734,1724983840543,-1984.15,0.00019178,2]
[336630735,1724983840553,-500.0,0.00019178,2]
[336630736,1724983840562,-500.0,0.00019178,2]
[336630737,1724983840572,-500.0,0.00019178,2]
[336630738,1724983840582,-636.04,0.00019178,2]
[336630739,1724983840592,-500.0,0.00019178,2]
[336630740,1724983840601,-1566.77,0.00019178,2]
[336630741,1724983840611,-517.98,0.00019178,2]
[336630742,1724983840620,-500.0,0.00019178,2]
[336630743,1724983840629,-500.0,0.00019178,2]
[336630744,1724983840639,-500.0,0.00019178,2]
[336630745,1724983840648,-500.09384134,0.00019178,2]
[336630746,1724983840658,-500.0,0.00019178,2]
[336630747,1724983840668,-1831.81,0.00019178,2]
[336630748,1724983840677,-500.0,0.00019178,2]
[336630749,1724983840686,-513.82867826,0.00019178,2]
[336630750,1724983840696,-500.0,0.00019178,2]
[336630751,1724983840705,-1072.33,0.00019178,2]
[336630752,1724983840715,-542.43,0.00019178,2]
[336630753,1724983840724,-1282.53,0.00019178,2]
[336630754,1724983840733,-743.43,0.00019178,2]
[336630756,1724983840743,-1221.57,0.00019178,2]
[336630758,1724983840753,-1461.81,0.00019178,2]
[336630760,1724983840762,-2207.85,0.00019178,2]
[336630762,1724983840772,-4413.6,0.00019178,2]
[336630763,1724983840781,-521.32549393,0.00019178,2]
[336630765,1724983840792,-500.0,0.00019178,2]
[336630767,1724983840801,-2474.75,0.00019178,2]
[336630768,1724983840811,-500.0,0.00019178,2]
[336630769,1724983840820,-420.0,0.00019418,2]
[336630770,1724983840829,-500.0,0.00019452,2]
[336630771,1724983840839,-349.22853047,0.00019452,2]
[336630772,1724983840848,-500.0,0.00019452,2]
[336630773,1724983840857,-503.22199693,0.00019452,2]
[336630774,1724983840866,-503.44468775,0.00019452,2]
[336630775,1724983840876,-500.0,0.00019452,2]
[336630776,1724983840885,-565.98819267,0.00019452,2]
[336630777,1724983840894,-500.0,0.00019452,2]
[336630778,1724983840905,-500.0,0.00019452,2]
[336630780,1724983840914,-500.0,0.00019452,2]
[336630781,1724983840923,-500.0,0.00019452,2]
[336630783,1724983840933,-500.0,0.00019452,2]
[336630785,1724983840942,-500.0,0.00019452,2]
[336630786,1724983840951,-500.0,0.00019452,2]
[336630787,1724983840961,-500.0,0.00019452,2]
[336630788,1724983840970,-829.52,0.00019452,2]
[336630789,1724983840979,-500.0,0.00019452,2]
[336630790,1724983840989,-500.0,0.00019452,2]
[336630791,1724983840998,-500.0,0.00019452,2]
[336630792,1724983841007,-500.0,0.00019452,2]
[336630793,1724983841016,-500.0,0.00019452,2]
[336630794,1724983841025,-500.0,0.00019452,2]
[336630795,1724983841036,-718.95,0.00019452,2]
[336630796,1724983841046,-200.0,0.00019452,2]
[336630797,1724983841055,-500.0,0.00019452,2]
[336630798,1724983841065,-500.0,0.00019452,2]
[336630799,1724983841074,-500.0,0.00019452,2]
[336630800,1724983841083,-500.0,0.00019452,2]
[336630801,1724983841093,-500.0,0.00019452,2]
[336630802,1724983841102,-500.0,0.00019452,2]
[336630803,1724983841111,-500.0,0.00019452,2]
[336630804,1724983841121,-507.46042032,0.00019452,2]
[336630805,1724983841133,-153.09585793,0.00019452,2]
[336630806,1724983841144,-624.21,0.00019452,2]
[336630807,1724983841155,-500.0,0.00019452,2]
[336630808,1724983841167,-811.43,0.00019452,2]
[336630809,1724983841179,-500.0,0.00019452,2]
[336630810,1724983841191,-650.46,0.00019452,2]
[336630811,1724983841204,-674.29,0.00019452,2]
[336630812,1724983841216,-500.0,0.00019452,2]
[336630813,1724983841227,-500.0,0.00019452,2]
[336630814,1724983841236,-500.0,0.00019452,2]
[336630815,1724983841246,-2372.91,0.00019452,2]
[336630816,1724983841257,-500.0,0.00019452,2]
[336630817,1724983841268,-500.0,0.00019452,2]
[336630818,1724983841279,-7565.24,0.00019452,2]
[336630819,1724983841291,-500.0,0.00019452,2]
[336630820,1724983841303,-544.68,0.00019452,2]
[336630821,1724983841314,-2711.47,0.00019452,2]
[336630822,1724983841326,-500.0,0.00019452,2]
[336630823,1724983841336,-500.0,0.00019452,2]
[336630824,1724983841348,-500.0,0.00019452,2]
[336630825,1724983841360,-1810.15,0.00019452,2]
[336630826,1724983841370,-500.0,0.00019452,2]
[336630827,1724983841382,-500.0,0.00019452,2]
[336630828,1724983841395,-500.0,0.00019452,2]
[336630829,1724983841407,-596.7,0.00019452,2]
[336630830,1724983841419,-446.35300613,0.00019452,2]
[336630831,1724983841431,-500.0,0.00019452,2]
[336630832,1724983841441,-500.0,0.00019452,2]
[336630833,1724983841452,-508.33962735,0.00019452,2]
[336630834,1724983841463,-500.0,0.00019452,2]
[336630835,1724983841473,-500.0,0.00019452,2]
[336630836,1724983841483,-732.32,0.00019452,2]
[336630837,1724983841494,-1028.9,0.00019452,2]
[336630838,1724983841504,-528.46,0.00019452,2]
[336630839,1724983841516,-500.0,0.00019452,2]
[336630840,1724983841527,-500.0,0.00019452,2]
[336630841,1724983841539,-500.0,0.00019452,2]
[336630842,1724983841551,-500.0,0.00019452,2]
[336630843,1724983841561,-500.0,0.00019452,2]
[336630844,1724983841572,-584.53,0.00019452,2]
[336630845,1724983841583,-376.6907282,0.00019452,2]
[336630846,1724983841593,-500.0,0.00019452,2]
[336630847,1724983841603,-558.86,0.00019452,2]
[336630848,1724983841613,-336.38020804,0.00019452,2]
[336630849,1724983841623,-500.0,0.00019452,2]
[336630850,1724983841635,-1600.8,0.00019452,2]
[336630851,1724983841645,-500.0,0.00019452,2]
[336630852,1724983841655,-513.0186048,0.00019452,2]
[336630853,1724983841666,-514.67,0.00019452,2]
[336630854,1724983841677,-500.0,0.00019452,2]
[336630855,1724983841687,-722.8,0.00019452,2]
[336630856,1724983841699,-500.0,0.00019452,2]
[336630857,1724983841710,-500.0,0.00019452,2]
[336630858,1724983841720,-749.96,0.00019452,2]
[336630859,1724983841732,-500.0,0.00019452,2]
[336630860,1724983841743,-500.0,0.00019452,2]
[336630861,1724983841754,-2936.91,0.00019452,2]
[336630862,1724983841765,-500.0,0.00019452,2]
[336630863,1724983841775,-538.9,0.00019452,2]
[336630864,1724983841786,-500.0,0.00019452,2]
[336630865,1724983841797,-4606.99,0.00019452,2]
[336630866,1724983841807,-500.0,0.00019452,2]
[336630867,1724983841816,-500.0,0.00019452,2]
[336630868,1724983841826,-257.03112137,0.00019452,2]
[336630869,1724983841836,-1984.15,0.00019452,2]
[336630870,1724983841846,-500.0,0.00019452,2]
[336630871,1724983841857,-500.0,0.00019452,2]
[336630872,1724983841866,-500.0,0.00019452,2]
[336630873,1724983841876,-636.04,0.00019452,2]
[336630874,1724983841887,-500.0,0.00019452,2]
[336630875,1724983841898,-1566.77,0.00019452,2]
[336630876,1724983841909,-517.98,0.00019452,2]
[336630877,1724983841919,-500.0,0.00019452,2]
[336630878,1724983841931,-500.0,0.00019452,2]
[336630879,1724983841942,-500.0,0.00019452,2]
[336630880,1724983841952,-500.0,0.00019452,2]
[336630881,1724983841962,-1831.81,0.00019452,2]
[336630882,1724983841972,-500.0,0.00019452,2]
[336630883,1724983841984,-500.0,0.00019452,2]
[336630884,1724983841994,-1072.33,0.00019452,2]
[336630885,1724983842005,-542.43,0.00019452,2]
[336630886,1724983842015,-1282.53,0.00019452,2]
[336630887,1724983842027,-743.43,0.00019452,2]
[336630888,1724983842038,-1221.57,0.00019452,2]
[336630889,1724983842049,-1461.81,0.00019452,2]
[336630890,1724983842059,-2207.85,0.00019452,2]
[336630891,1724983842069,-4413.6,0.00019452,2]
[336630892,1724983842079,-500.0,0.00019452,2]
[336630893,1724983842090,-2474.75,0.00019452,2]
[336630894,1724983842100,-500.0,0.00019452,2]
[336630895,1724983842111,-166.24919001,0.00019626,2]
[336630896,1724983842123,-153.0,0.00019677,2]
[336630897,1724983842135,-153.0,0.00019677,2]
[336630898,1724983842145,-153.0,0.00019677,2]
[336630899,1724983842155,-153.0,0.00019677,2]
[336630900,1724983842166,-153.0,0.00019677,2]
[336630901,1724983842176,-153.0,0.00019677,2]
[336630902,1724983842187,-153.0,0.00019677,2]
[336630903,1724983842197,-153.0,0.00019677,2]
[336630904,1724983842209,-153.0,0.00019677,2]
[336630905,1724983842219,-153.0,0.00019677,2]
[336630906,1724983842230,-153.0,0.00019677,2]
[336630907,1724983842240,-153.0,0.00019678,2]
[336630908,1724983842250,-153.0,0.00019678,2]
[336630909,1724983842260,-153.0,0.00019678,2]
[336630910,1724983842270,-153.0,0.00019678,2]
[336630911,1724983842281,-153.0,0.00019678,2]
[336630912,1724983842291,-153.0,0.00019678,2]
[336630913,1724983842302,-153.0,0.00019678,2]
[336630914,1724983842312,-153.0,0.00019678,2]
[336630915,1724983842323,-153.0,0.00019678,2]
[336630916,1724983842334,-153.0,0.00019678,2]
[336630917,1724983842344,-153.0,0.00019678,2]
[336630918,1724983842354,-153.0,0.00019678,2]
[336630919,1724983842364,-153.0,0.00019678,2]
[336630920,1724983842375,-153.0,0.00019678,2]
[336630921,1724983842385,-153.0,0.00019678,2]
[336630922,1724983842396,-153.0,0.00019678,2]
[336630923,1724983842407,-153.0,0.00019678,2]
[336630924,1724983842418,-153.0,0.00019678,2]
[336630925,1724983842429,-153.0,0.00019678,2]
[336630926,1724983842439,-153.0,0.00019678,2]
[336630927,1724983842450,-153.0,0.00019678,2]
[336630928,1724983842460,-153.0,0.00019678,2]
[336630929,1724983842471,-153.0,0.00019678,2]
[336630930,1724983842481,-153.0,0.00019678,2]
[336630931,1724983842492,-153.0,0.00019678,2]
[336630932,1724983842503,-153.0,0.00019678,2]
[336630933,1724983842513,-153.0,0.00019678,2]
[336630934,1724983842524,-153.0,0.00019678,2]
[336630935,1724983842534,-153.0,0.00019678,2]
[336630936,1724983842545,-153.0,0.00019678,2]
[336630937,1724983842556,-153.0,0.00019678,2]
[336630938,1724983842566,-153.0,0.00019678,2]
[336630939,1724983842576,-153.0,0.00019678,2]
[336630940,1724983842586,-153.0,0.00019682,2]
[336630941,1724983842597,-153.0,0.00019682,2]
[336630942,1724983842607,-153.0,0.00019682,2]
[336630943,1724983842618,-153.0,0.00019682,2]
[336630944,1724983842628,-153.0,0.00019682,2]
[336630945,1724983842639,-153.0,0.00019682,2]
[336630946,1724983842649,-153.0,0.00019682,2]
[336630947,1724983842659,-153.0,0.00019682,2]
[336630948,1724983842669,-153.0,0.00019682,2]
[336630949,1724983842679,-153.0,0.00019682,2]
[336630950,1724983842689,-153.0,0.00019682,2]
[336630951,1724983842700,-153.0,0.00019682,2]
[336630952,1724983842710,-153.0,0.00019682,2]
[336630953,1724983842720,-153.0,0.00019682,2]
[336630954,1724983842731,-153.0,0.00019682,2]
[336630955,1724983842740,-153.0,0.00019682,2]
[336630956,1724983842751,-153.0,0.00019682,2]
[336630957,1724983842762,-153.0,0.00019682,2]
[336630958,1724983842772,-153.0,0.00019682,2]
[336630959,1724983842782,-153.0,0.00019682,2]
[336630960,1724983842792,-153.0,0.00019682,2]
[336630961,1724983842803,-153.0,0.00019682,2]
[336630962,1724983842812,-153.0,0.00019682,2]
[336630963,1724983842822,-153.0,0.00019682,2]
[336630964,1724983842832,-153.0,0.00019682,2]
[336630965,1724983842843,-153.0,0.00019682,2]
[336630966,1724983842853,-153.0,0.00019682,2]
[336630967,1724983842863,-153.0,0.00019682,2]
[336630968,1724983842873,-153.0,0.00019682,2]
[336630969,1724983842884,-153.0,0.00019682,2]
[336630970,1724983842894,-153.0,0.00019682,2]
[336630971,1724983842904,-153.0,0.00019682,2]
[336630972,1724983842914,-153.0,0.00019682,2]
[336630973,1724983842924,-153.0,0.00019682,2]
[336630974,1724983842934,-153.0,0.00019682,2]
[336630975,1724983842945,-153.0,0.00019682,2]
[336630976,1724983843117,-153.0,0.00019682,2]
[336630977,1724983843134,-153.0,0.00019682,2]
[336630978,1724983843144,-153.0,0.00019682,2]
[336630979,1724983843154,-153.0,0.00019682,2]
[336630980,1724983843163,-153.0,0.00019682,2]
[336630981,1724983843173,-153.0,0.00019682,2]
[336630982,1724983843182,-153.0,0.00019682,2]
[336630983,1724983843191,-153.0,0.00019682,2]
[336630984,1724983843202,-153.0,0.00019682,2]
[336630985,1724983843211,-153.0,0.00019682,2]
[336630986,1724983843220,-153.0,0.00019682,2]
[336630987,1724983843230,-153.0,0.00019682,2]
[336630988,1724983843239,-153.0,0.00019682,2]
[336630989,1724983843248,-153.0,0.00019682,2]
[336630990,1724983843258,-153.0,0.00019682,2]
[336630991,1724983843267,-153.0,0.00019682,2]
[336630992,1724983843277,-153.0,0.00019682,2]
[336630993,1724983843286,-153.0,0.00019682,2]
[336630994,1724983843299,-153.0,0.00019682,2]
[336630996,1724983843308,-153.0,0.00019682,2]
[336630997,1724983843318,-153.0,0.00019682,2]
[336630998,1724983843327,-153.0,0.00019682,2]
[336630999,1724983843337,-153.0,0.00019682,2]
[336631000,1724983843346,-153.0,0.00019682,2]
[336631001,1724983843355,-153.0,0.00019682,2]
[336631002,1724983843364,-153.0,0.00019682,2]
[336631003,1724983843374,-153.0,0.00019682,2]
[336631004,1724983843384,-153.0,0.00019682,2]
[336631005,1724983843393,-153.0,0.00019682,2]
[336631006,1724983843402,-153.0,0.00019682,2]
[336631007,1724983843412,-153.0,0.00019682,2]
[336631008,1724983843421,-153.0,0.00019682,2]
[336631009,1724983843430,-153.0,0.00019682,2]
[336631010,1724983843440,-153.0,0.00019682,2]
[336631011,1724983843449,-153.0,0.00019682,2]
[336631012,1724983843458,-153.0,0.00019682,2]
[336631013,1724983843467,-153.0,0.00019682,2]
[336631014,1724983843476,-153.0,0.00019682,2]
[336631016,1724983843486,-153.0,0.00019682,2]
[336631017,1724983843495,-153.0,0.00019682,2]
[336631018,1724983843504,-153.0,0.00019682,2]
[336631020,1724983843513,-153.0,0.00019682,2]
[336631022,1724983843522,-153.0,0.00019682,2]
[336631024,1724983843532,-153.0,0.00019682,2]
[336631025,1724983843544,-153.0,0.00019682,2]
[336631026,1724983843553,-153.0,0.00019682,2]
[336631027,1724983843563,-153.0,0.00019682,2]
[336631028,1724983843572,-153.0,0.00019682,2]
[336631029,1724983843582,-153.0,0.00019682,2]
[336631030,1724983843591,-153.0,0.00019682,2]
[336631031,1724983843600,-153.0,0.00019682,2]
[336631032,1724983843609,-153.0,0.00019682,2]
[336631033,1724983843618,-153.0,0.00019682,2]
[336631034,1724983843628,-153.0,0.00019682,2]
[336631035,1724983843638,-153.0,0.00019682,2]
[336631036,1724983843647,-153.0,0.00019682,2]
[336631038,1724983843656,-153.0,0.00019682,2]
[336631039,1724983843666,-153.0,0.00019682,2]
[336631041,1724983843675,-300.403654,0.000197,8]
[336631043,1724983843684,-218.582,0.00019714,2]
[336631044,1724983843694,-500.0,0.00019726,2]
[336631045,1724983843704,-505.46227481,0.00019726,2]
[336631046,1724983843714,-500.0,0.00019726,2]
[336631047,1724983843725,-206.08360037,0.00019726,2]
[336631048,1724983843735,-500.0,0.00019726,2]
[336631049,1724983843746,-500.0,0.00019726,2]
[336631050,1724983843756,-500.0,0.00019726,2]
[336631051,1724983843767,-500.0,0.00019726,2]
[336631052,1724983843778,-500.0,0.00019726,2]
[336631053,1724983843788,-500.0,0.00019726,2]
[336631054,1724983843800,-829.52,0.00019726,2]
[336631055,1724983843811,-500.0,0.00019726,2]
[336631056,1724983843823,-500.0,0.00019726,2]
[336631058,1724983843834,-500.0,0.00019726,2]
[336631061,1724983843845,-500.0,0.00019726,2]
[336631063,1724983843854,-718.95,0.00019726,2]
[336631064,1724983843864,-200.0,0.00019726,2]
[336631066,1724983843873,-500.0,0.00019726,2]
[336631068,1724983843883,-500.0,0.00019726,2]
[336631070,1724983843892,-500.0,0.00019726,2]
[336631071,1724983843902,-500.0,0.00019726,2]
[336631072,1724983843911,-500.0,0.00019726,2]
[336631073,1724983843920,-500.0,0.00019726,2]
[336631074,1724983843929,-624.21,0.00019726,2]
[336631075,1724983843939,-500.0,0.00019726,2]
[336631076,1724983843948,-811.43,0.00019726,2]
[336631077,1724983843958,-650.46,0.00019726,2]
[336631078,1724983843968,-674.29,0.00019726,2]
[336631079,1724983843978,-500.0,0.00019726,2]
[336631080,1724983843990,-500.0,0.00019726,2]
[336631081,1724983844002,-594.10218712,0.00019726,2]
[336631084,1724983844013,-2372.91,0.00019726,2]
[336631085,1724983844022,-500.0,0.00019726,2]
[336631086,1724983844033,-507.00443879,0.00019726,2]
[336631087,1724983844044,-7565.24,0.00019726,2]
[336631088,1724983844054,-500.0,0.00019726,2]